bitfinex/quotes_BTCUSD_20241001
["timestamp","ask_amount","ask_price","bid_price","bid_amount"]
[1727764784859,0.56063626,64079.0,64078.0,0.27640541]
[1727764787151,0.49030595,64079.0,64078.0,0.27640541]
[1727764787615,0.56063626,64079.0,64078.0,0.27640541]
[1727764789025,0.53619748,64079.0,64078.0,0.27640541]
[1727764789258,0.5606594,64079.0,64078.0,0.27640541]
[1727764790448,0.5606594,64079.0,64078.0,0.30614858]
[1727764793687,0.6562594,64079.0,64078.0,0.30614858]
[1727764793908,0.65625663,64079.0,64078.0,0.30614858]
[1727764795501,0.65625663,64079.0,64078.0,0.18812446]
[1727764795932,0.65625663,64079.0,64078.0,0.30614858]
[1727764796154,0.65625663,64079.0,64078.0,0.27640541]
[1727764796371,0.65625663,64079.0,64078.0,0.30612843]
[1727764797536,0.65625663,64079.0,64078.0,0.27640541]
[1727764798385,0.58590592,64079.0,64078.0,0.27640541]
[1727764800425,0.561444,64079.0,64078.0,0.27640541]
[1727764801350,0.561444,64079.0,64078.0,0.306113]
[1727764803505,0.58590602,64079.0,64078.0,0.306113]
[1727764804738,0.58590602,64079.0,64078.0,0.27640541]
[1727764804997,0.561444,64079.0,64078.0,0.30610966]
[1727764805231,0.75067474,64079.0,64078.0,0.15838129]
[1727764805469,0.90713254,64079.0,64078.0,0.15838129]
[1727764805749,0.98643254,64079.0,64078.0,0.15838129]
[1727764807930,1.01089613,64079.0,64078.0,0.15838129]
[1727764808801,0.77513833,64079.0,64078.0,0.15838129]
[1727764809035,0.89234142,64079.0,64078.0,0.15838129]
[1727764809261,0.86889702,64079.0,64078.0,0.15838129]
[1727764809483,0.65622635,64079.0,64078.0,0.17693321]
[1727764809713,0.561444,64079.0,64078.0,0.17693321]
[1727764810391,0.465844,64079.0,64078.0,0.17693321]
[1727764810589,0.465844,64079.0,64078.0,0.15838129]
[1727764810590,0.5127222,64079.0,64078.0,0.15838129]
[1727764810817,0.5127222,64079.0,64078.0,0.17690549]
[1727764811903,0.51272112,64079.0,64078.0,0.17690549]
[1727764812803,0.465844,64079.0,64078.0,0.17690549]
[1727764814361,0.465844,64079.0,64078.0,0.17687419]
[1727764815925,0.51272112,64079.0,64078.0,0.17687419]
[1727764816158,0.51272112,64079.0,64078.0,0.29489831]
[1727764816395,0.60402112,64079.0,64078.0,0.29489831]
[1727764816642,0.60402072,64079.0,64078.0,0.29489831]
[1727764817373,0.557144,64079.0,64078.0,0.17687419]
[1727764817621,0.557144,64079.0,64078.0,0.29046765]
[1727764818088,0.58160608,64079.0,64078.0,0.29046765]
[1727764819043,0.77094217,64079.0,64078.0,0.27197475]
[1727764819755,0.86469561,64079.0,64078.0,0.27197475]
[1727764820769,0.77075836,64079.0,64078.0,0.27197475]
[1727764821015,0.8645118,64079.0,64078.0,0.27197475]
[1727764821967,0.58160608,64079.0,64078.0,0.29032335]
[1727764822211,0.65192088,64079.0,64078.0,0.29032335]
[1727764822463,0.58160608,64079.0,64078.0,0.27197475]
[1727764823472,0.65192085,64079.0,64078.0,0.29031337]
[1727764823962,0.62745877,64079.0,64078.0,0.29030987]
[1727764824216,0.557144,64079.0,64078.0,0.27197475]
[1727764824683,0.62745811,64079.0,64078.0,0.29031016]
[1727764824922,0.557144,64079.0,64078.0,0.27197475]
[1727764825381,0.62745784,64079.0,64078.0,0.27197475]
[1727764825606,0.557144,64079.0,64078.0,0.27197475]
[1727764826088,0.62745803,64079.0,64078.0,0.2903142]
[1727764826558,0.62745739,64079.0,64078.0,0.2903142]
[1727764826787,0.6519195,64079.0,64078.0,0.2903142]
[1727764828936,0.86433528,64079.0,64078.0,0.15395063]
[1727764829177,0.77058409,64079.0,64078.0,0.15395063]
[1727764829429,0.88777991,64079.0,64078.0,0.15395063]
[1727764831147,0.77058409,64079.0,64078.0,0.15395063]
[1727764831380,0.77069963,64079.0,64078.0,0.15395063]
[1727764833305,0.88788593,64079.0,64078.0,0.15395063]
[1727764836317,0.77069963,64079.0,64078.0,0.15395063]
[1727764836534,0.74623752,64079.0,64078.0,0.15395063]
[1727764838251,0.7461556,64079.0,64078.0,0.15395063]
[1727764838525,0.7451556,64079.0,64078.0,0.15395063]
[1727764838731,0.7441556,64079.0,64078.0,0.15395063]
[1727764839158,0.83789941,64079.0,64078.0,0.15395063]
[1727764839375,0.86236198,64079.0,64078.0,0.15395063]
[1727764839826,0.83789941,64079.0,64078.0,0.15395063]
[1727764840267,0.7441556,64079.0,64078.0,0.15395063]
[1727764840701,0.83790088,64079.0,64078.0,0.15395063]
[1727764841164,0.7441556,64079.0,64078.0,0.15395063]
[1727764841360,0.86135179,64079.0,64078.0,0.15395063]
[1727764842864,0.76863368,64079.0,64078.0,0.15395063]
[1727764843334,0.86237859,64079.0,64078.0,0.15395063]
[1727764846503,0.86135179,64079.0,64078.0,0.15395063]
[1727764848970,0.88581454,64079.0,64078.0,0.15395063]
[1727764851096,0.57960675,64079.0,64078.0,0.15395063]
[1727764851336,0.76851193,64079.0,64078.0,0.15395063]
[1727764852043,0.88570457,64079.0,64078.0,0.15395063]
[1727764852273,0.86124182,64079.0,64078.0,0.15395063]
[1727764852554,0.74404918,64079.0,64078.0,0.15395063]
[1727764855214,0.76851201,64079.0,64078.0,0.15395063]
[1727764855721,0.76851201,64079.0,64078.0,0.15305063]
[1727764856200,0.76851201,64079.0,64078.0,0.15295063]
[1727764856434,0.76851201,64079.0,64078.0,0.15215063]
[1727764856435,0.88571417,64079.0,64078.0,0.15215063]
[1727764856685,0.76851201,64079.0,64078.0,0.15215063]
[1727764857173,0.76851201,64079.0,64078.0,0.15195063]
[1727764857413,0.88571566,64079.0,64078.0,0.15125063]
[1727764857657,0.76851201,64079.0,64078.0,0.15125063]
[1727764857890,0.76851201,64079.0,64078.0,0.15105063]
[1727764858114,0.76851201,64079.0,64078.0,0.15075063]
[1727764858347,0.76851201,64079.0,64078.0,0.15025063]
[1727764858853,0.76851201,64079.0,64078.0,0.14995063]
[1727764859082,0.74404918,64079.0,64078.0,0.14945063]
[1727764859283,0.74404918,64079.0,64078.0,0.14935063]
[1727764859666,0.74404918,64079.0,64078.0,0.14895063]
[1727764860747,0.74424668,64079.0,64078.0,0.14895063]
[1727764868608,0.74424668,64079.0,64078.0,0.01240235]
[1727764868866,1.05676148,64079.0,64078.0,0.01240235]
[1727764869323,0.90070448,64079.0,64078.0,0.01240235]
[1727764869325,1.32034188,64079.0,64078.0,0.001648]
[1727764869800,1.39544188,64079.0,64078.0,0.001648]
[1727764870042,1.55374739,64079.0,64078.0,0.001648]
[1727764870534,1.39544188,64079.0,64078.0,0.001648]
[1727764870766,1.55374739,64079.0,64078.0,0.001648]
[1727764871241,1.71019417,64079.0,64078.0,0.001648]
[1727764871479,1.55688866,64079.0,64078.0,0.001648]
[1727764871990,0.330564,64076.0,64075.0,0.001648]
[1727764872238,1.25668387,64076.0,64075.0,0.001648]
[1727764872479,1.25668387,64076.0,64069.0,0.05149794]
[1727764872480,0.55430312,64070.0,64069.0,0.05149794]
[1727764872718,1.36239887,64070.0,64069.0,0.05149794]
[1727764872941,1.626464,64070.0,64069.0,0.00162014]
[1727764873406,1.67393503,64070.0,64069.0,0.00162014]
[1727764873858,1.6746107,64070.0,64069.0,0.00162014]
[1727764874081,1.6746107,64070.0,64066.0,0.001646]
[1727764874082,0.27911012,64067.0,64066.0,0.001646]
[1727764874310,1.2659874,64067.0,64066.0,0.001646]
[1727764874533,1.68834991,64067.0,64066.0,0.001646]
[1727764875217,1.69634991,64067.0,64066.0,0.001646]
[1727764875469,1.53844667,64067.0,64066.0,0.001646]
[1727764875694,1.54544667,64067.0,64066.0,0.001646]
[1727764875917,1.70189345,64067.0,64066.0,0.001646]
[1727764877922,1.70389345,64067.0,64066.0,0.001646]
[1727764879087,1.68889345,64067.0,64066.0,0.001646]
[1727764879535,1.70289345,64067.0,64066.0,0.001646]
[1727764879756,1.84298776,64067.0,64066.0,0.001646]
[1727764880012,1.84298827,64067.0,64066.0,0.001646]
[1727764880507,1.5914993,64067.0,64066.0,0.001646]
[1727764880999,1.5914993,64067.0,64058.0,0.001646]
[1727764881000,0.161098,64062.0,64058.0,0.001646]
[1727764881244,1.2659994,64062.0,64058.0,0.001646]
[1727764881942,0.156106,64059.0,64058.0,0.001646]
[1727764882186,1.1758537,64059.0,64058.0,0.001646]
[1727764883407,1.0825074,64059.0,64058.0,0.001646]
[1727764883654,1.08134179,64059.0,64058.0,0.001646]
[1727764883895,1.17154179,64059.0,64058.0,0.001646]
[1727764884410,1.18254179,64059.0,64058.0,0.001646]
[1727764884761,1.06477291,64059.0,64058.0,0.001646]
[1727764884981,1.07477291,64059.0,64058.0,0.001646]
[1727764885738,1.06377291,64059.0,64058.0,0.001646]
[1727764885978,1.07477291,64059.0,64058.0,0.001646]
[1727764886483,1.00480792,64059.0,64058.0,0.001646]
[1727764886963,0.99480792,64059.0,64058.0,0.001646]
[1727764887206,1.05143497,64059.0,64058.0,0.001646]
[1727764887452,1.00480792,64059.0,64058.0,0.001646]
[1727764887678,0.7306778,64059.0,64058.0,0.001646]
[1727764887919,0.8867838,64059.0,64058.0,0.001646]
[1727764888154,0.93340619,64059.0,64058.0,0.001646]
[1727764888405,0.8867838,64059.0,64058.0,0.001646]
[1727764888903,0.8854061,64059.0,64049.0,0.0494295]
[1727764889151,0.65713414,64050.0,64049.0,0.0494295]
[1727764889400,0.16113,64049.0,64048.0,0.00247]
[1727764889659,0.38750645,64049.0,64048.0,0.00247]
[1727764889916,0.85052645,64049.0,64048.0,0.00247]
[1727764890422,0.8706078,64049.0,64048.0,0.00247]
[1727764890667,0.94050763,64049.0,64048.0,0.00247]
[1727764890948,0.8656078,64049.0,64048.0,0.00247]
[1727764891163,0.91220664,64049.0,64048.0,0.00247]
[1727764891407,0.8736078,64049.0,64048.0,0.00247]
[1727764891641,0.8826078,64049.0,64048.0,0.00247]
[1727764891888,0.8656078,64049.0,64048.0,0.00247]
[1727764892136,0.89908598,64049.0,64048.0,0.00247]
[1727764893339,0.90708598,64049.0,64048.0,0.00247]
[1727764893849,0.005,64045.0,64032.0,0.0001001]
[1727764894095,0.005,64045.0,64034.0,0.23842593]
[1727764894096,1.03522333,64045.0,64034.0,0.23842593]
[1727764894325,1.05851404,64045.0,64037.0,0.001648]
[1727764895070,1.17395184,64045.0,64037.0,0.001648]
[1727764895322,1.18795184,64045.0,64037.0,0.001648]
[1727764895556,1.07248265,64045.0,64037.0,0.001648]
[1727764895805,1.00264192,64045.0,64037.0,0.001648]
[1727764896292,1.21202698,64045.0,64037.0,0.001648]
[1727764896553,1.04112228,64045.0,64037.0,0.001648]
[1727764896792,0.37318112,64038.0,64037.0,0.001648]
[1727764897022,0.99265892,64038.0,64037.0,0.001648]
[1727764897734,1.01714023,64038.0,64037.0,0.001648]
[1727764897988,1.02614023,64038.0,64037.0,0.001648]
[1727764898209,1.03614023,64038.0,64037.0,0.001648]
[1727764899165,1.01165892,64038.0,64037.0,0.001648]
[1727764900645,1.03614043,64038.0,64037.0,0.001648]
[1727764902620,0.76195931,64038.0,64037.0,0.001648]
[1727764902860,0.66295931,64038.0,64037.0,0.157807]
[1727764903106,0.66295931,64038.0,64037.0,0.238107]
[1727764903338,0.66295931,64038.0,64037.0,0.24549146]
[1727764903589,0.65395931,64038.0,64037.0,0.24549146]
[1727764904105,0.65295931,64038.0,64037.0,0.24549146]
[1727764904357,0.65495931,64038.0,64037.0,0.24549146]
[1727764904611,0.64595931,64038.0,64037.0,0.24549146]
[1727764904857,0.64795931,64038.0,64037.0,0.24549146]
[1727764905371,0.49150151,64038.0,64037.0,0.24549146]
[1727764905849,0.48950151,64038.0,64037.0,0.24549146]
[1727764906084,0.48850151,64038.0,64037.0,0.24549146]
[1727764906586,0.48950151,64038.0,64037.0,0.24549146]
[1727764909023,0.46502,64038.0,64037.0,0.24549146]
[1727764911880,0.48949875,64038.0,64037.0,0.24549146]
[1727764917649,0.53614089,64038.0,64037.0,0.24549146]
[1727764917856,0.48949875,64038.0,64037.0,0.24549146]
[1727764918989,0.46502,64038.0,64037.0,0.24549146]
[1727764920610,0.51166214,64038.0,64037.0,0.24549146]
[1727764920827,0.46502,64038.0,64037.0,0.24549146]
[1727764921899,0.48949845,64038.0,64037.0,0.24549146]
[1727764923129,0.48949845,64038.0,64037.0,0.263783]
[1727764923587,0.48849845,64038.0,64037.0,0.263783]
[1727764924469,0.48749845,64038.0,64037.0,0.263783]
[1727764924677,0.46402,64038.0,64037.0,0.263783]
[1727764924901,0.46502,64038.0,64037.0,0.263783]
[1727764925336,0.46402,64038.0,64037.0,0.24549146]
[1727764925728,0.46402,64038.0,64037.0,0.24649146]
[1727764925729,0.46502,64038.0,64037.0,0.24649146]
[1727764929159,0.46502,64038.0,64037.0,0.43059146]
[1727764929565,0.46502,64038.0,64037.0,0.43544601]
[1727764930220,0.46502,64038.0,64037.0,0.43554611]
[1727764931957,0.46502,64038.0,64037.0,0.59200391]
[1727764932155,0.46502,64038.0,64037.0,0.59400391]
[1727764932580,0.46302,64038.0,64037.0,0.59300391]
[1727764932789,0.46402,64038.0,64037.0,0.61085175]
[1727764932989,0.46502,64038.0,64037.0,0.59400391]
[1727764933191,0.08002971,64038.0,64037.0,0.66615175]
[1727764933413,0.07902971,64038.0,64037.0,0.64730391]
[1727764933606,0.07902971,64038.0,64037.0,0.66515175]
[1727764933829,0.07902971,64038.0,64037.0,0.66615175]
[1727764933830,0.08002971,64038.0,64037.0,0.66615175]
[1727764934034,0.08102971,64038.0,64037.0,0.66615175]
[1727764934240,0.08102971,64038.0,64037.0,0.64830391]
[1727764934616,0.1055035,64038.0,64037.0,0.66301357]
[1727764935252,0.1045035,64038.0,64037.0,0.66301357]
[1727764935729,0.1045035,64038.0,64037.0,0.67301357]
[1727764936214,0.000824,64044.0,64043.0,0.025]
[1727764936429,0.000824,64044.0,64043.0,0.63072692]
[1727764936649,0.000824,64044.0,64043.0,0.64287522]
[1727764938341,0.001824,64044.0,64043.0,0.64887522]
[1727764938833,0.002824,64044.0,64043.0,0.65587522]
[1727764942117,0.02729647,64044.0,64043.0,0.65587522]
[1727764942352,0.002824,64044.0,64043.0,0.65587522]
[1727764944921,0.002824,64044.0,64043.0,0.65387522]
[1727764945841,0.002824,64044.0,64043.0,0.63087522]
[1727764946068,0.002824,64044.0,64043.0,0.5128511]
[1727764946294,0.002824,64044.0,64043.0,0.63087522]
[1727764951663,0.02729702,64044.0,64043.0,0.63087522]
[1727764952149,0.02729702,64044.0,64043.0,0.63287522]
[1727764953165,0.02729702,64044.0,64043.0,0.65079476]
[1727764954612,0.02729702,64044.0,64043.0,0.67379476]
[1727764955389,0.02729702,64044.0,64043.0,0.6737567]
[1727764955893,0.002824,64044.0,64043.0,0.6737567]
[1727764957370,0.002824,64044.0,64043.0,0.73993595]
[1727764958845,0.002824,64044.0,64043.0,0.71493595]
[1727764959845,0.002824,64044.0,64043.0,0.63983595]
[1727764960084,0.002824,64044.0,64043.0,0.66491806]
[1727764962495,0.002824,64044.0,64043.0,0.55577522]
[1727764962742,0.002824,64044.0,64043.0,0.63994575]
[1727764963246,0.002824,64044.0,64043.0,0.66505687]
[1727764965137,0.02729622,64044.0,64043.0,0.66505687]
[1727764966074,0.02729622,64044.0,64043.0,0.59878881]
[1727764966356,0.002824,64044.0,64043.0,0.63994132]
[1727764966615,0.002824,64044.0,64043.0,0.66505272]
[1727764968304,0.002824,64044.0,64043.0,0.50859492]
[1727764969945,0.002824,64044.0,64043.0,0.50853463]
[1727764970656,0.002824,64044.0,64043.0,0.48342323]
[1727764971112,0.002824,64044.0,64043.0,0.4466101]
[1727764972092,0.0272967,64044.0,64043.0,0.48342323]
[1727764972332,0.0272967,64044.0,64043.0,0.50853463]
[1727764972563,0.0272967,64044.0,64043.0,0.58933463]
[1727764972800,0.0272967,64044.0,64043.0,0.74568103]
[1727764973034,0.0272967,64044.0,64043.0,0.77077842]
[1727764976338,0.0272967,64044.0,64043.0,0.72781846]
[1727764976849,0.0272967,64044.0,64043.0,0.77082795]
[1727764978495,0.002824,64044.0,64043.0,0.77082795]
[1727764978940,0.002824,64044.0,64043.0,0.79944342]
[1727764979377,0.002824,64044.0,64043.0,0.77082795]
[1727764979599,0.002824,64044.0,64043.0,0.79944342]
[1727764979837,0.002824,64044.0,64043.0,0.68668427]
[1727764980073,0.002824,64044.0,64043.0,0.79948016]
[1727764980607,0.002824,64044.0,64043.0,0.79948334]
[1727764981817,0.02729604,64044.0,64043.0,0.79948334]
[1727764982044,0.02729604,64044.0,64043.0,0.7234992]
[1727764982292,0.02729604,64044.0,64043.0,0.6983638]
[1727764982529,0.02729604,64044.0,64043.0,0.77428163]
[1727764983004,0.02729604,64044.0,64043.0,0.79938859]
[1727764985560,0.02729604,64044.0,64043.0,0.77425246]
[1727764985805,0.02729604,64044.0,64043.0,0.8244536]
[1727764986763,0.02729604,64044.0,64043.0,0.84280657]
[1727764988199,0.002824,64044.0,64043.0,0.72278245]
[1727764988421,0.002824,64044.0,64043.0,0.84080657]
[1727764988674,0.002824,64044.0,64043.0,0.70977636]
[1727764988925,0.002824,64044.0,64043.0,0.69353503]
[1727764989182,0.002824,64044.0,64043.0,0.7846727]
[1727764989421,0.002824,64044.0,64043.0,0.75623554]
[1727764989661,0.002824,64044.0,64043.0,0.71336175]
[1727764990878,0.002824,64044.0,64043.0,0.68826118]
[1727764991102,0.02729633,64044.0,64043.0,0.68826118]
[1727764994160,0.02729633,64044.0,64043.0,0.39077926]
[1727764994389,0.02729633,64044.0,64043.0,0.50880338]
[1727764994390,0.12399633,64044.0,64043.0,0.50880338]
[1727764995074,0.12399633,64044.0,64043.0,0.39077926]
[1727764995309,0.12399633,64044.0,64043.0,0.48371957]
[1727764995528,0.099524,64044.0,64043.0,0.48371957]
[1727764996453,0.099524,64044.0,64043.0,0.44702298]
[1727764999153,0.099524,64044.0,64043.0,0.44699653]
[1727764999385,0.099524,64044.0,64043.0,0.44699651]
[1727765000977,0.099524,64044.0,64043.0,0.32897239]
[1727765001198,0.099524,64044.0,64043.0,0.44699651]
[1727765001861,0.12399835,64044.0,64043.0,0.44699651]
[1727765002093,0.12399835,64044.0,64043.0,0.32897239]
[1727765002327,0.12399835,64044.0,64043.0,0.44699651]
[1727765004195,0.12399835,64044.0,64043.0,0.32897239]
[1727765004413,0.12399835,64044.0,64043.0,0.41765553]
[1727765004886,0.12399835,64044.0,64043.0,0.29963141]
[1727765005103,0.12399835,64044.0,64043.0,0.41765553]
[1727765005572,0.12399835,64044.0,64043.0,0.1996143]
[1727765005790,0.12399835,64044.0,64043.0,0.31763842]
[1727765005791,0.17090218,64044.0,64043.0,0.31763842]
[1727765006041,0.12399835,64044.0,64043.0,0.29931742]
[1727765006267,0.17087997,64044.0,64043.0,0.29931742]
[1727765006704,0.17087997,64044.0,64043.0,0.1812933]
[1727765007653,0.17087272,64044.0,64043.0,0.1812933]
[1727765008311,0.12399835,64044.0,64043.0,0.1812933]
[1727765008980,0.099524,64044.0,64043.0,0.1812933]
[1727765012172,0.1239995,64044.0,64043.0,0.1812933]
[1727765013575,0.14637562,64044.0,64043.0,0.1812933]
[1727765014245,0.099524,64044.0,64043.0,0.1812933]
[1727765018621,0.181424,64044.0,64043.0,0.1812933]
[1727765018843,0.3378818,64044.0,64043.0,0.1812933]
[1727765019137,0.3378818,64044.0,64043.0,0.1742933]
[1727765019138,0.38371341,64044.0,64043.0,0.1742933]
[1727765019359,0.3368818,64044.0,64043.0,0.1742933]
[1727765020026,0.3378818,64044.0,64043.0,0.1812933]
[1727765020681,0.3368818,64044.0,64043.0,0.1752933]
[1727765020932,0.3378818,64044.0,64043.0,0.1812933]
[1727765021784,0.3368818,64044.0,64043.0,0.1752933]
[1727765022009,0.40712922,64044.0,64043.0,0.1752933]
[1727765022226,0.40812922,64044.0,64043.0,0.1812933]
[1727765022445,0.40811698,64044.0,64043.0,0.1812933]
[1727765023811,0.40811698,64044.0,64043.0,0.0251483]
[1727765025802,0.45590592,64044.0,64043.0,0.0251483]
[1727765026066,0.3378818,64044.0,64043.0,0.0251483]
[1727765026287,0.3378818,64044.0,64043.0,0.0178599]
[1727765026507,0.3378818,64044.0,64043.0,0.02622952]
[1727765027033,0.3368818,64044.0,64043.0,0.01922952]
[1727765027294,0.40709568,64044.0,64043.0,0.01922952]
[1727765027511,0.40709568,64044.0,64043.0,0.02222952]
[1727765028180,0.40609568,64044.0,64043.0,0.01622952]
[1727765028885,0.40609568,64044.0,64043.0,0.01922952]
[1727765029338,0.43057384,64044.0,64043.0,0.01622952]
[1727765030945,0.43057384,64044.0,64043.0,0.01322952]
[1727765031625,0.43057384,64044.0,64043.0,0.01422952]
[1727765031877,0.43057384,64044.0,64043.0,0.01522952]
[1727765032789,0.58671584,64044.0,64043.0,0.01522952]
[1727765033016,0.36035996,64044.0,64043.0,0.01522952]
[1727765033249,0.36035996,64044.0,64043.0,0.002]
[1727765033250,0.70368944,64044.0,64043.0,0.002]
[1727765033473,0.82071258,64044.0,64043.0,0.002]
[1727765033707,0.66457058,64044.0,64043.0,0.002]
[1727765035274,0.7825947,64044.0,64043.0,0.002]
[1727765035493,0.9387367,64044.0,64043.0,0.002]
[1727765035927,0.7825947,64044.0,64043.0,0.002]
[1727765036139,0.66457058,64044.0,64043.0,0.002]
[1727765038156,0.54754744,64044.0,64043.0,0.002]
[1727765038927,0.52306928,64044.0,64043.0,0.002]
[1727765041387,0.54754783,64044.0,64043.0,0.002]
[1727765044041,0.54754783,64044.0,64043.0,0.01525239]
[1727765044279,0.52306928,64044.0,64043.0,0.01525239]
[1727765045468,0.54754714,64044.0,64043.0,0.17139739]
[1727765045707,0.54741787,64044.0,64043.0,0.17139739]
[1727765046406,0.46551787,64044.0,64043.0,0.17139739]
[1727765046638,0.46551787,64044.0,64043.0,0.17039739]
[1727765046881,0.46551787,64044.0,64043.0,0.16939739]
[1727765047124,0.46751787,64044.0,64043.0,0.16939739]
[1727765047368,0.47055566,64044.0,64043.0,0.16939739]
[1727765049000,0.4460778,64044.0,64043.0,0.16939739]
[1727765049685,0.47055552,64044.0,64043.0,0.16939739]
[1727765050611,0.47062638,64044.0,64043.0,0.16939739]
[1727765058973,0.44614866,64044.0,64043.0,0.16939739]
[1727765062139,0.47062632,64044.0,64043.0,0.16939739]
[1727765062627,0.61123126,64044.0,64043.0,0.16939739]
[1727765062856,0.47062632,64044.0,64043.0,0.16939739]
[1727765063343,0.61123126,64044.0,64043.0,0.16939739]
[1727765065415,0.61159642,64044.0,64043.0,0.16939739]
[1727765067170,0.47084301,64044.0,64043.0,0.16939739]
[1727765068994,0.44636535,64044.0,64043.0,0.16939739]
[1727765071967,0.47084297,64044.0,64043.0,0.16939739]
[1727765074743,0.47084297,64044.0,64043.0,0.01325239]
[1727765075370,0.47081013,64044.0,64043.0,0.01325239]
[1727765078340,0.78577451,64044.0,64043.0,0.01325239]
[1727765078590,0.161154,64039.0,64038.0,0.001646]
[1727765078825,1.26391663,64039.0,64038.0,0.001646]
[1727765079035,1.52291221,64039.0,64038.0,0.001646]
[1727765079762,1.59282552,64039.0,64038.0,0.001646]
[1727765080179,1.5970687,64039.0,64038.0,0.001646]
[1727765080615,1.5920687,64039.0,64038.0,0.001646]
[1727765080866,1.52215539,64039.0,64038.0,0.001646]
[1727765081311,1.5546369,64039.0,64038.0,0.001646]
[1727765081953,1.3984829,64039.0,64038.0,0.001646]
[1727765082163,1.29676273,64039.0,64038.0,0.001646]
[1727765082405,1.55668992,64039.0,64038.0,0.001646]
[1727765083046,1.3984829,64039.0,64038.0,0.001646]
[1727765083305,1.55492968,64039.0,64038.0,0.001646]
[1727765083796,1.19715878,64039.0,64038.0,0.17155439]
[1727765084034,0.69357379,64039.0,64038.0,0.36727851]
[1727765084292,0.55476032,64039.0,64038.0,0.36727851]
[1727765084525,0.50791151,64039.0,64038.0,0.36727851]
[1727765086588,0.50091151,64039.0,64038.0,0.36727851]
[1727765086810,0.50191151,64039.0,64038.0,0.36727851]
[1727765087092,0.49391151,64039.0,64038.0,0.36727851]
[1727765087788,0.49291151,64039.0,64038.0,0.36727851]
[1727765088021,0.49291151,64039.0,64038.0,0.36927851]
[1727765088252,0.49391151,64039.0,64038.0,0.37427851]
[1727765088485,0.49391151,64039.0,64038.0,0.37227851]
[1727765088713,0.49491151,64039.0,64038.0,0.37627851]
[1727765088965,0.47043,64039.0,64038.0,0.37627851]
[1727765089195,0.47043,64039.0,64038.0,0.18055439]
[1727765090395,0.65743574,64039.0,64038.0,0.18055439]
[1727765090863,0.47043,64039.0,64038.0,0.18055439]
[1727765092024,0.49490809,64039.0,64038.0,0.18055439]
[1727765092997,0.565179,64039.0,64038.0,0.18055439]
[1727765093702,0.49490809,64039.0,64038.0,0.18055439]
[1727765101192,0.49573209,64039.0,64038.0,0.18055439]
[1727765101689,0.49573209,64039.0,64038.0,0.28151637]
[1727765101918,0.471254,64039.0,64038.0,0.28151637]
[1727765102919,0.469254,64039.0,64038.0,0.27251637]
[1727765103163,0.470254,64039.0,64038.0,0.27551637]
[1727765103622,0.470254,64039.0,64038.0,0.28051637]
[1727765103623,0.471254,64039.0,64038.0,0.28051637]
[1727765104810,0.49473005,64039.0,64038.0,0.27751637]
[1727765105269,0.49573005,64039.0,64038.0,0.28651637]
[1727765105519,0.49573005,64039.0,64038.0,0.2865515]
[1727765106217,0.49473005,64039.0,64038.0,0.2815515]
[1727765106683,0.49573005,64039.0,64038.0,0.2905515]
[1727765108763,0.49573005,64039.0,64038.0,0.29055236]
[1727765109007,0.471254,64039.0,64038.0,0.29055236]
[1727765111472,0.471254,64039.0,64038.0,0.20795236]
[1727765111696,0.471254,64039.0,64038.0,0.18955439]
[1727765112142,0.49573156,64039.0,64038.0,0.18955439]
[1727765112801,0.471254,64039.0,64038.0,0.26865439]
[1727765115740,0.49572954,64039.0,64038.0,0.26865439]
[1727765119207,0.471254,64039.0,64038.0,0.26865439]
[1727765122252,0.49573052,64039.0,64038.0,0.26865439]
[1727765124851,0.49573052,64039.0,64038.0,0.30757851]
[1727765129046,0.471254,64039.0,64038.0,0.30757851]
[1727765129966,0.570254,64039.0,64038.0,0.18955439]
[1727765130206,0.570254,64039.0,64038.0,0.30757851]
[1727765132077,0.59473101,64039.0,64038.0,0.30757851]
[1727765133468,0.59058677,64039.0,64038.0,0.30757851]
[1727765135804,0.49158677,64039.0,64038.0,0.38597851]
[1727765139015,0.46710976,64039.0,64038.0,0.38597851]
[1727765141991,0.491586,64039.0,64038.0,0.38597851]
[1727765142215,0.491586,64039.0,64038.0,0.40075498]
[1727765142438,0.491586,64039.0,64038.0,0.43768302]
[1727765143568,0.491586,64039.0,64038.0,0.43768101]
[1727765144055,0.491586,64039.0,64038.0,0.4672217]
[1727765144261,0.491586,64039.0,64038.0,0.48525511]
[1727765144480,0.491586,64039.0,64038.0,0.50099262]
[1727765144699,0.491586,64039.0,64038.0,0.46406659]
[1727765144921,0.491586,64039.0,64038.0,0.5009803]
[1727765146819,0.491586,64039.0,64038.0,0.40075498]
[1727765147042,0.491586,64039.0,64038.0,0.50095907]
[1727765149125,0.46710976,64039.0,64038.0,0.50095907]
[1727765149802,0.46710976,64039.0,64038.0,0.40075498]
[1727765150041,0.46710976,64039.0,64038.0,0.48519643]
[1727765150268,0.46710976,64039.0,64038.0,0.50092959]
[1727765152089,0.49158598,64039.0,64038.0,0.50092959]
[1727765152977,0.49158598,64039.0,64038.0,0.48519643]
[1727765153211,0.49158598,64039.0,64038.0,0.50092815]
[1727765153421,0.49158598,64039.0,64038.0,0.43450812]
[1727765153648,0.49158598,64039.0,64038.0,0.48517085]
[1727765154134,0.49158598,64039.0,64038.0,0.50090164]
[1727765155202,0.49158598,64039.0,64038.0,0.50290164]
[1727765155414,0.46710976,64039.0,64038.0,0.50090164]
[1727765156298,0.46710976,64039.0,64038.0,0.50290164]
[1727765156584,0.46710976,64039.0,64038.0,0.78235944]
[1727765156810,0.46710976,64039.0,64038.0,0.83934872]
[1727765157929,0.46610976,64039.0,64038.0,0.83034872]
[1727765158580,0.46710976,64039.0,64038.0,0.83934872]
[1727765159022,0.46610976,64039.0,64038.0,0.83034872]
[1727765159481,0.46710976,64039.0,64038.0,0.76397902]
[1727765159729,0.46710976,64039.0,64038.0,0.81122686]
[1727765161536,0.46610976,64039.0,64038.0,0.80222686]
[1727765161996,0.46710976,64039.0,64038.0,0.78265499]
[1727765162356,0.46710976,64039.0,64038.0,0.80053586]
[1727765162590,0.49158328,64039.0,64038.0,0.81623393]
[1727765162824,0.42912128,64039.0,64038.0,0.81623393]
[1727765163029,0.30419728,64039.0,64038.0,0.76019848]
[1727765163862,5.2e-07,64039.0,64038.0,0.76019848]
[1727765164070,0.000824,64044.0,64043.0,0.002]
[1727765164279,0.000824,64044.0,64043.0,0.43915482]
[1727765164488,0.000824,64044.0,64043.0,0.45281602]
[1727765164914,0.000824,64044.0,64043.0,0.53241602]
[1727765165125,0.000824,64044.0,64043.0,0.53244409]
[1727765165531,0.001824,64044.0,64043.0,0.54544409]
[1727765166874,0.002824,64044.0,64043.0,0.55844409]
[1727765168444,0.002824,64044.0,64043.0,0.54053469]
[1727765168667,0.002824,64044.0,64043.0,0.55841105]
[1727765168883,0.002824,64044.0,64043.0,0.73786885]
[1727765170242,0.11527195,64051.0,64050.0,0.158128]